bitfinex-derivatives/quotes_ETHF0:USTF0_20230105
["timestamp","ask_amount","ask_price","bid_price","bid_amount"]
[1672910911912,6.20592718,1249.2,1249.1,5.0]
[1672910913384,6.20592718,1249.2,1249.1,6.79787092]
[1672910915909,2.99812718,1249.2,1249.1,6.79787092]
[1672910916123,6.20592718,1249.2,1249.1,6.79787092]
[1672910918547,2.99812718,1249.2,1249.1,6.79787092]
[1672910918747,6.20592718,1249.2,1249.1,6.79787092]
[1672910921794,2.99812718,1249.2,1249.1,6.79787092]
[1672910922004,6.20592718,1249.2,1249.1,6.79787092]
[1672910922425,2.99812718,1249.2,1249.1,6.79787092]
[1672910922636,6.20592718,1249.2,1249.1,6.79787092]
[1672910922844,2.99812718,1249.2,1249.1,6.79787092]
[1672910923267,6.20592718,1249.2,1249.1,6.79787092]
[1672910923490,2.99812718,1249.2,1249.1,6.79787092]
[1672910923689,6.20592718,1249.2,1249.1,6.79787092]
[1672910924423,2.99812718,1249.2,1249.1,6.79787092]
[1672910924741,6.20592718,1249.2,1249.1,6.79787092]
[1672910925269,2.99812718,1249.2,1249.1,6.79787092]
[1672910925685,6.20592718,1249.2,1249.1,6.79787092]
[1672910929470,3.2078,1249.2,1249.1,6.79787092]
[1672910930205,3.2078,1249.2,1249.1,5.0]
[1672910933468,3.2078,1249.2,1249.1,6.79787092]
[1672910933673,6.20537068,1249.2,1249.1,6.79787092]
[1672910936829,6.20537068,1249.2,1249.1,9.19446986]
[1672910937244,6.20537068,1249.2,1249.1,6.79787092]
[1672910937454,6.20537068,1249.2,1249.1,9.19446986]
[1672910937766,6.20537068,1249.2,1249.1,6.79787092]
[1672910938723,2.99757068,1249.2,1249.1,6.79787092]
[1672910938932,6.20537068,1249.2,1249.1,6.79787092]
[1672910940924,6.20537068,1249.2,1249.1,9.19446986]
[1672910941454,6.20537068,1249.2,1249.1,6.79787092]
[1672910942305,2.99757068,1249.2,1249.1,6.79787092]
[1672910942518,6.20537068,1249.2,1249.1,6.79787092]
[1672910945038,2.99757068,1249.2,1249.1,6.79787092]
[1672910945349,6.20537068,1249.2,1249.1,6.79787092]
[1672910945555,6.20537068,1249.2,1249.1,9.19446986]
[1672910947558,6.20537068,1249.2,1249.1,7.39659894]
[1672910948388,6.20537068,1249.2,1249.1,9.19693902]
[1672910950608,6.20537068,1249.2,1249.1,7.39659894]
[1672910950926,6.20537068,1249.2,1249.1,9.19719761]
[1672910952916,2.99757068,1249.2,1249.1,9.19719761]
[1672910953130,6.20537068,1249.2,1249.1,9.19719761]
[1672910953549,2.99757068,1249.2,1249.1,9.19719761]
[1672910953758,6.20537068,1249.2,1249.1,9.19719761]
[1672910954597,6.20537068,1249.2,1249.1,7.39659894]
[1672910955340,6.20537068,1249.2,1249.1,8.81544257]
[1672910955654,6.20537068,1249.2,1249.1,7.39659894]
[1672910956798,6.20537068,1249.2,1249.1,9.19719685]
[1672910957859,2.99757068,1249.2,1249.1,9.19719685]
[1672910958171,6.20537068,1249.2,1249.1,9.19719685]
[1672910958385,6.20537068,1249.2,1249.1,7.39659894]
[1672910960068,2.99757068,1249.2,1249.1,7.39659894]
[1672910960277,6.20537068,1249.2,1249.1,7.39659894]
[1672910960487,2.99757068,1249.2,1249.1,7.39659894]
[1672910960699,6.20537068,1249.2,1249.1,9.197234]
[1672910961751,6.20537068,1249.2,1249.1,7.39659894]
[1672910962692,6.20537068,1249.2,1249.1,9.1972284]
[1672910964696,6.20537068,1249.2,1249.1,7.39659894]
[1672910966796,2.99757068,1249.2,1249.1,7.39659894]
[1672910967005,6.20537068,1249.2,1249.1,7.39659894]
[1672910967957,2.99757068,1249.2,1249.1,7.39659894]
[1672910968163,6.20537068,1249.2,1249.1,7.39659894]
[1672910969322,6.20537068,1249.2,1249.1,9.19727802]
[1672910969837,6.20537068,1249.2,1249.1,7.39659894]
[1672910970052,2.99757068,1249.2,1249.1,7.39659894]
[1672910970262,6.20537068,1249.2,1249.1,7.39659894]
[1672910971002,6.20537068,1249.2,1249.1,9.19730327]
[1672910971323,6.20537068,1249.2,1249.1,7.39659894]
[1672910972889,3.2078,1249.2,1249.1,9.19768543]
[1672910973199,6.2078,1249.2,1249.1,9.19768543]
[1672910973524,6.2078,1249.2,1249.1,7.39659894]
[1672910974575,6.2078,1249.2,1249.1,8.81548215]
[1672910974787,6.2078,1249.2,1249.1,7.39659894]
[1672910974990,6.20758039,1249.2,1249.1,8.81546249]
[1672910976056,2.99978039,1249.2,1249.1,8.81546249]
[1672910976269,6.20758039,1249.2,1249.1,8.81546249]
[1672910978475,3.2078,1249.2,1249.1,7.39659894]
[1672910978678,6.2078,1249.2,1249.1,8.81547567]
[1672910979100,6.2078,1249.2,1249.1,7.39659894]
[1672910981097,3.0,1249.2,1249.1,7.39659894]
[1672910981316,6.2078,1249.2,1249.1,7.39659894]
[1672910981521,3.0,1249.2,1249.1,7.39659894]
[1672910981733,6.2078,1249.2,1249.1,7.39659894]
[1672910982048,9.20786465,1249.2,1249.1,8.81548377]
[1672910982262,6.20786465,1249.2,1249.1,8.81548377]
[1672910983617,3.00006465,1249.2,1249.1,8.81548377]
[1672910983828,6.20786465,1249.2,1249.1,8.81548377]
[1672910984043,3.2078,1249.2,1249.1,7.39659894]
[1672910984566,3.2078,1249.2,1249.1,9.19806577]
[1672910985619,3.2078,1249.2,1249.1,7.39659894]
[1672910985829,3.2078,1249.2,1249.1,9.19798675]
[1672910986037,3.2078,1249.2,1249.1,7.39659894]
[1672910986244,3.2078,1249.2,1249.1,9.19798249]
[1672910986455,6.2078,1249.2,1249.1,9.19798249]
[1672910986878,3.2078,1249.2,1249.1,9.19798249]
[1672910987828,3.2078,1249.2,1249.1,10.99930589]
[1672910988769,6.59432229,1249.3,1249.1,10.99930589]
[1672910988987,3.2078,1249.2,1249.1,10.99930589]
[1672910989194,6.2078,1249.2,1249.1,10.99930589]
[1672910989618,3.0,1249.2,1249.1,10.99930589]
[1672910989932,6.2078,1249.2,1249.1,10.99930589]
[1672910990143,6.2078,1249.2,1249.1,9.19798249]
[1672910991080,6.2078,1249.2,1249.1,10.99925713]
[1672910991719,3.0,1249.2,1249.1,10.99925713]
[1672910991930,6.2078,1249.2,1249.1,10.99925713]
[1672910992242,6.20711007,1249.2,1249.1,9.19798249]
[1672910992452,3.2078,1249.2,1249.1,10.99920505]
[1672910994554,6.80212229,1249.2,1249.1,8.60260611]
[1672910995713,3.2078,1249.2,1249.1,8.60260611]
[1672910997814,10.77735079,1249.3,1249.1,8.60260611]
[1672910998033,3.2078,1249.2,1249.1,8.60260611]
[1672910998772,10.77735079,1249.3,1249.1,8.60260611]
[1672910999082,3.2078,1249.2,1249.1,8.60260611]
[1672910999500,3.2078,1249.2,1249.1,6.80138355]
[1672910999714,6.80212229,1249.2,1249.1,6.80138355]
[1672911004023,3.2078,1249.2,1249.1,6.80138355]
[1672911005387,6.80212229,1249.2,1249.1,6.80138355]
[1672911005808,3.2078,1249.2,1249.1,6.80138355]
[1672911008227,10.77735079,1249.3,1249.1,6.80138355]
[1672911008537,6.20426236,1249.2,1249.1,8.60260611]
[1672911010646,6.20426236,1249.2,1249.1,11.60260611]
[1672911011480,6.20426236,1249.2,1249.1,13.99920505]
[1672911011693,6.20426236,1249.2,1249.1,12.19798249]
[1672911011901,6.20426236,1249.2,1249.1,13.99773045]
[1672911015682,8.60158693,1249.2,1249.1,12.19798249]
[1672911016520,6.20426236,1249.2,1249.1,13.99754847]
[1672911016739,1.79812299,1249.2,1249.1,22.21746294]
[1672911022200,4.19540628,1249.3,1249.1,22.21746294]
[1672911022518,4.19540628,1249.3,1249.2,12.19531125]
[1672911022933,4.19540628,1249.3,1249.2,22.41993032]
[1672911023145,1.79812299,1249.3,1249.2,22.41991395]
[1672911023464,1.79812299,1249.3,1249.2,20.62236836]
[1672911023675,1.79812299,1249.3,1249.2,22.41979844]
[1672911023878,1.79812299,1249.3,1249.2,22.41979797]
[1672911024088,1.79812299,1249.3,1249.2,20.62236836]
[1672911024294,1.79812299,1249.3,1249.2,22.41943406]
[1672911028091,1.79812299,1249.3,1249.2,20.02268477]
[1672911033970,1.79812299,1249.3,1249.2,21.2199154]
[1672911034182,1.79812299,1249.3,1249.2,20.02268477]
[1672911044695,4.19540628,1249.3,1249.2,20.02268477]
[1672911044902,2.39728329,1249.3,1249.2,20.02268477]
[1672911045112,7.19338114,1249.3,1249.2,20.02268477]
[1672911045324,5.39728329,1249.3,1249.2,21.22074877]
[1672911045950,8.60508329,1249.3,1249.2,2.9951297]
[1672911046377,11.59699111,1249.3,1249.2,2.9951297]
[1672911047005,11.59699111,1249.3,1249.2,1.198064]
[1672911047211,9.19970782,1249.3,1249.2,1.198064]
[1672911048268,9.19970782,1249.3,1249.2,2.9951297]
[1672911048481,9.19970782,1249.3,1249.2,1.198064]
[1672911050482,9.19970782,1249.3,1249.2,2.9951297]
[1672911050785,5.99190782,1249.3,1249.2,2.9951297]
[1672911051318,9.19970782,1249.3,1249.2,2.9951297]
[1672911052688,6.2078,1249.3,1249.2,1.198064]
[1672911053312,6.2078,1249.3,1249.1,9.79651325]
[1672911053521,3.49522625,1249.2,1249.1,9.79651325]
[1672911053839,5.89147212,1249.2,1249.1,8.59844925]
[1672911054053,3.49522625,1249.2,1249.1,8.59844925]
[1672911054257,3.49522625,1249.2,1249.1,9.79772942]
[1672911054466,3.49522625,1249.2,1249.1,8.59844925]
[1672911054676,3.49522625,1249.2,1249.1,9.79772668]
[1672911055211,3.49522625,1249.2,1249.1,8.59844925]
[1672911055624,2.89602915,1249.2,1249.1,11.59844925]
[1672911055940,5.8912554,1249.2,1249.1,8.59844925]
[1672911057095,9.0990554,1249.2,1249.1,8.59844925]
[1672911059944,5.8912554,1249.2,1249.1,8.59844925]
[1672911060150,9.0990554,1249.2,1249.1,8.59844925]
[1672911061101,5.8912554,1249.2,1249.1,8.59844925]
[1672911061527,9.0990554,1249.2,1249.1,8.59844925]
[1672911061725,5.8912554,1249.2,1249.1,8.59844925]
[1672911062569,5.60382915,1249.2,1249.1,11.59844925]
[1672911062781,5.60382915,1249.2,1249.1,8.59844925]
[1672911062983,8.5990554,1249.2,1249.1,8.59844925]
[1672911063823,8.5990554,1249.2,1249.1,11.59844925]
[1672911064033,5.60382915,1249.2,1249.1,11.59844925]
[1672911064881,5.60382915,1249.2,1249.1,8.59844925]
[1672911065080,8.5990554,1249.2,1249.1,11.59844925]
[1672911065512,5.60382915,1249.2,1249.1,11.59844925]
[1672911065716,8.5990554,1249.2,1249.1,11.59844925]
[1672911065924,5.60382915,1249.2,1249.1,11.59844925]
[1672911066345,8.5990554,1249.2,1249.1,11.59844925]
[1672911067510,5.60382915,1249.2,1249.1,11.59844925]
[1672911067717,5.00485225,1249.2,1249.1,14.21658633]
[1672911067928,5.60382915,1249.2,1249.1,8.60005459]
[1672911068138,8.5990554,1249.2,1249.1,8.60005459]
[1672911068769,8.5990554,1249.2,1249.1,11.60005459]
[1672911068977,8.5990554,1249.2,1249.1,6.60005459]
[1672911069724,8.5990554,1249.2,1249.1,11.60005459]
[1672911070772,8.5990554,1249.2,1249.1,8.60005459]
[1672911071089,6.20302625,1249.2,1249.1,9.79917178]
[1672911072241,3.2078,1249.2,1249.1,8.00050074]
[1672911072457,6.20207927,1249.2,1249.1,8.00050074]
[1672911072769,6.20207927,1249.2,1249.1,9.79917178]
[1672911074454,2.99427927,1249.2,1249.1,9.79917178]
[1672911074864,6.20207927,1249.2,1249.1,9.79917178]
[1672911080022,2.99427927,1249.2,1249.1,9.79917178]
[1672911080549,6.20207927,1249.2,1249.1,9.79917178]
[1672911080975,2.99427927,1249.2,1249.1,9.79917178]
[1672911081387,6.20207927,1249.2,1249.1,9.79917178]
[1672911082023,6.20207927,1249.2,1249.1,9.79936287]
[1672911082655,6.20207927,1249.2,1249.1,8.60005459]
[1672911082864,6.20207927,1249.2,1249.1,11.60005459]
[1672911083077,6.20207927,1249.2,1249.1,12.79959781]
[1672911083392,6.20207927,1249.2,1249.1,11.60005459]
[1672911083807,2.99427927,1249.2,1249.1,11.60005459]
[1672911084012,6.20207927,1249.2,1249.1,11.60005459]
[1672911084441,6.20207927,1249.2,1249.1,13.99828265]
[1672911085072,2.99427927,1249.2,1249.1,13.99828265]
[1672911085285,6.20207927,1249.2,1249.1,13.99828265]
[1672911085910,2.99427927,1249.2,1249.1,13.99828265]
[1672911086128,6.20207927,1249.2,1249.1,8.60005459]
[1672911086334,6.20207927,1249.2,1249.1,11.60005459]
[1672911086862,6.20207927,1249.2,1249.1,13.99828265]
[1672911087387,2.99427927,1249.2,1249.1,13.99828265]
[1672911087604,6.20207927,1249.2,1249.1,13.99828265]
[1672911088009,6.20207927,1249.2,1249.1,11.60005459]
[1672911088228,6.20207927,1249.2,1249.1,13.99828265]
[1672911089068,6.20207927,1249.2,1249.1,13.61845967]
[1672911089289,8.60012763,1249.2,1249.1,13.61845967]
[1672911089593,6.20207927,1249.2,1249.1,13.61845967]
[1672911089803,8.60006714,1249.2,1249.1,13.61845967]
[1672911090013,5.39226714,1249.2,1249.1,13.61845967]
[1672911090218,2.39798787,1249.2,1249.1,14.21658621]
[1672911090750,2.39798787,1249.2,1249.1,16.61683046]
[1672911092119,2.39798787,1249.2,1249.1,13.62047586]
[1672911093380,2.39798787,1249.2,1249.1,16.61683046]
[1672911093595,4.196463,1249.2,1249.1,22.21758621]
[1672911093804,1.79847513,1249.2,1249.1,22.21758621]
[1672911094330,4.196463,1249.2,1249.1,19.22123161]
[1672911095164,1.79847513,1249.2,1249.1,22.22007875]
[1672911109563,5.60578787,1249.2,1249.1,16.6185852]
[1672911110089,5.60578787,1249.2,1249.1,13.61973806]
[1672911110713,5.60578787,1249.2,1249.1,10.61973806]
[1672911111772,2.39798787,1249.2,1249.1,10.61973806]
[1672911112081,5.60578787,1249.2,1249.1,10.61973806]
[1672911116707,2.39798787,1249.2,1249.1,10.61973806]
[1672911116914,5.60578787,1249.2,1249.1,10.61973806]
[1672911117345,2.39798787,1249.2,1249.1,10.61973806]
[1672911117660,5.60578787,1249.2,1249.1,10.61973806]
[1672911118500,2.39798787,1249.2,1249.1,18.62073806]
[1672911118711,1.79704188,1249.2,1249.1,16.22123161]
[1672911119443,1.79704188,1249.2,1249.1,19.22011216]
[1672911119649,1.79704188,1249.2,1249.1,19.22011043]
[1672911120281,1.79704188,1249.2,1249.1,19.22011214]
[1672911125332,1.79704188,1249.2,1249.1,16.22123161]
[1672911125858,4.19502975,1249.3,1249.1,16.22123161]
[1672911126063,4.19502975,1249.3,1249.2,17.81765991]
[1672911126590,1.79704188,1249.4,1249.3,0.31521621]
[1672911126794,1.79704188,1249.4,1249.3,17.73350643]
[1672911129110,1.79704188,1249.4,1249.3,17.13259266]
[1672911129532,1.79704188,1249.4,1249.3,20.13103482]
[1672911131429,1.79704188,1249.4,1249.3,17.13259266]
[1672911133315,1.79704188,1249.4,1249.3,15.7137446]
[1672911133730,5.60578787,1249.4,1249.3,7.11263131]
[1672911134363,8.60578787,1249.4,1249.3,7.11263131]
[1672911134576,8.60578787,1249.4,1249.3,8.31096074]
[1672911135729,9.20207927,1249.4,1249.3,6.51354564]
[1672911136780,11.59543125,1249.4,1249.3,6.51354564]
[1672911137407,9.20207927,1249.4,1249.3,6.51354564]
[1672911142774,9.20207927,1249.4,1249.3,6.50743408]
[1672911149490,6.20207927,1249.4,1249.3,6.50743408]
[1672911150328,8.5946692,1249.4,1249.3,6.50743408]
[1672911151387,6.20207927,1249.4,1249.3,6.50743408]
[1672911155057,3.2078,1249.4,1249.3,5.30910465]
[1672911155271,6.80212229,1249.4,1249.3,5.30910465]
[1672911155591,6.80212229,1249.4,1249.3,0.30910465]
[1672911157482,3.2078,1249.4,1249.3,0.30910465]
[1672911162847,6.80212229,1249.4,1249.3,0.30910465]
[1672911164634,3.2078,1249.4,1249.3,0.30910465]
[1672911164846,6.19599372,1249.4,1249.3,0.30910465]
[1672911165056,3.2078,1249.4,1249.3,0.30910465]
[1672911167154,6.1956375,1249.4,1249.3,0.30910465]
[1672911169781,2.9878375,1249.4,1249.3,0.30910465]
[1672911169987,6.1956375,1249.4,1249.3,0.30910465]
[1672911170621,2.9878375,1249.4,1249.3,0.30910465]
[1672911170836,6.1956375,1249.4,1249.3,0.30910465]
[1672911171464,6.1956375,1249.4,1249.3,1.50743408]
[1672911171886,2.9878375,1249.4,1249.3,1.50743408]
[1672911172201,6.1956375,1249.4,1249.3,1.50743408]
[1672911172933,6.1956375,1249.4,1249.3,0.30910465]
[1672911173252,6.1956375,1249.4,1249.3,1.50743408]
[1672911175032,2.9878375,1249.4,1249.3,1.50743408]
[1672911175355,6.1956375,1249.4,1249.3,1.50743408]
[1672911175567,3.2078,1249.4,1249.3,1.50743408]
[1672911176188,6.1992355,1249.4,1249.3,3.30484918]
[1672911178298,6.1992355,1249.4,1249.3,8.30484918]
[1672911178504,8.59248146,1249.4,1249.3,7.10651975]
[1672911178822,5.60104596,1249.4,1249.3,7.10651975]
[1672911183864,2.39324596,1249.4,1249.3,7.10651975]
[1672911184072,5.60104596,1249.4,1249.3,7.10651975]
[1672911184599,8.59248146,1249.4,1249.3,8.30525909]
[1672911186487,8.59248146,1249.4,1249.3,8.30325909]
[1672911187648,6.1992355,1249.4,1249.3,8.30325909]
[1672911188072,6.1992355,1249.4,1249.3,6.50584399]
[1672911190705,3.2078,1249.4,1249.3,0.2110547]
[1672911190913,6.80212229,1249.4,1249.3,0.2110547]
[1672911202156,3.59432229,1249.4,1249.3,0.2110547]
[1672911202369,6.80212229,1249.4,1249.3,0.2110547]
[1672911208355,10.98515079,1249.4,1249.3,0.2110547]
[1672911208567,7.3908285,1249.4,1249.3,5.47e-05]
[1672911208774,20.17467168,1249.4,1249.3,5.47e-05]
[1672911208978,15.99164318,1249.4,1249.3,5.47e-05]
[1672911211090,20.17300821,1249.4,1249.3,5.47e-05]
[1672911211406,15.39016503,1249.4,1249.3,5.47e-05]
[1672911224960,20.17300821,1249.4,1249.3,5.47e-05]
[1672911225907,16.96520821,1249.4,1249.3,5.47e-05]
[1672911226222,20.17300821,1249.4,1249.3,5.47e-05]
[1672911226956,15.99164318,1249.4,1249.3,5.47e-05]
[1672911227691,12.1824,1249.3,1248.8,1.19873934]
[1672911228012,6.19440435,1248.9,1248.7,7.99615444]
[1672911228212,6.19440435,1248.9,1248.7,2.99615444]
[1672911228213,5.38925994,1248.8,1248.7,2.99615444]
[1672911228425,5.98660435,1248.8,1248.6,2.99615444]
[1672911228635,5.59685976,1248.7,1248.6,1.19873934]
[1672911228850,5.59685976,1248.7,1248.6,2.99615444]
[1672911229060,5.59685976,1248.7,1248.6,1.19873934]
[1672911229272,7.38741039,1248.7,1248.6,1.19873934]
[1672911229891,4.99835063,1248.7,1248.6,2.99615444]
[1672911230109,4.99835063,1248.7,1248.6,2.99532185]
[1672911230320,4.99835063,1248.7,1248.6,1.7974151]
[1672911230941,4.99835063,1248.7,1248.6,2.99488663]
[1672911231153,3.2078,1248.7,1248.6,2.99488663]
[1672911231363,3.2078,1248.7,1248.6,4.7974151]
[1672911232211,3.2078,1248.7,1248.6,1.7974151]
[1672911233152,3.2078,1248.7,1248.6,2.99463232]
[1672911234727,4.99835063,1248.7,1248.6,1.19721722]
[1672911236415,3.2078,1248.7,1248.6,1.19721722]
[1672911236633,4.99835063,1248.7,1248.6,1.19721722]
[1672911236935,3.2078,1248.7,1248.6,1.19721722]
[1672911239776,4.99835063,1248.7,1248.6,1.19721722]
[1672911239987,3.2078,1248.7,1248.6,1.19721722]
[1672911240518,3.2078,1248.7,1248.6,5.99463232]
[1672911240725,4.79055063,1248.8,1248.6,4.7974151]
[1672911241041,4.79055063,1248.8,1248.7,4.19690489]
[1672911241458,1.79055063,1248.8,1248.7,4.19690489]
[1672911241674,7.38741039,1248.9,1248.7,5.99431999]
[1672911241883,1.79055063,1248.8,1248.7,4.19690489]
[1672911242089,1.79055063,1248.8,1248.7,9.19690489]
[1672911242297,10.38741039,1248.9,1248.7,9.19690489]
[1672911243252,4.79055063,1248.8,1248.7,9.19690489]
[1672911243563,3.0,1248.8,1248.7,9.19690489]
[1672911243775,3.0,1248.8,1248.7,10.99431999]
[1672911244511,10.38741039,1248.9,1248.7,10.99431999]
[1672911244932,1.79055063,1248.8,1248.7,10.99431999]
[1672911245148,4.79055063,1248.8,1248.7,10.99431999]
[1672911245349,10.38741039,1248.9,1248.7,10.99431999]
[1672911245562,1.79055063,1248.8,1248.7,10.99431999]
[1672911245874,4.79055063,1248.8,1248.7,10.99431999]
[1672911246825,4.99835063,1248.8,1248.7,10.99431999]
[1672911247238,4.99835063,1248.8,1248.7,9.7974151]
[1672911249554,3.2078,1248.8,1248.7,9.7974151]
[1672911249975,3.2078,1248.8,1248.7,12.19494349]
[1672911250292,4.99835063,1248.8,1248.7,9.7974151]
[1672911251767,1.79055063,1248.8,1248.7,9.7974151]
[1672911251972,4.99835063,1248.8,1248.7,9.7974151]
[1672911252384,1.79055063,1248.8,1248.7,9.7974151]
[1672911252600,4.99835063,1248.8,1248.7,9.7974151]
[1672911254594,1.79055063,1248.8,1248.7,9.7974151]
[1672911254803,4.99835063,1248.8,1248.7,9.7974151]
[1672911255551,1.79055063,1248.8,1248.7,9.7974151]
[1672911256068,4.99835063,1248.8,1248.7,9.7974151]
[1672911256702,1.79055063,1248.8,1248.7,9.7974151]
[1672911257329,4.99835063,1248.8,1248.7,9.7974151]
[1672911258383,4.99835063,1248.8,1248.7,12.19494349]
[1672911258592,4.99835063,1248.8,1248.7,10.39752839]
[1672911259012,1.79055063,1248.8,1248.7,10.39752839]
[1672911259640,1.79055063,1248.8,1248.7,12.19531441]
[1672911259958,4.99835063,1248.8,1248.7,12.19531441]
[1672911260485,1.79055063,1248.8,1248.7,12.19531441]
[1672911260696,4.99835063,1248.8,1248.7,12.19531441]
[1672911260898,4.99835063,1248.8,1248.7,10.39752839]
[1672911261536,4.99835063,1248.8,1248.7,11.81673314]
[1672911263210,4.99835063,1248.8,1248.7,19.81773314]
[1672911263425,2.38905976,1248.9,1248.7,19.81773314]
[1672911263426,7.38741039,1249.0,1248.8,0.31534363]
[1672911263737,4.99835063,1249.0,1248.9,12.19574011]
[1672911263948,7.38741039,1249.0,1248.9,9.79817433]
[1672911264155,4.99835063,1249.0,1248.9,12.19574011]
[1672911265414,4.99835063,1249.0,1248.9,9.79817433]
[1672911265624,7.38741039,1249.0,1248.9,9.79817433]
[1672911267417,4.99835063,1249.0,1248.9,12.19574011]
[1672911267628,4.99835063,1249.0,1248.9,9.79817433]
[1672911268042,4.99835063,1249.0,1248.9,12.19574011]
[1672911270569,4.99835063,1249.0,1248.9,10.39756578]
[1672911270777,4.99835063,1249.0,1248.9,12.19488378]
[1672911272565,4.17961039,1249.1,1248.9,19.81757086]
[1672911272767,7.38741039,1249.2,1249.0,7.19399792]
[1672911272977,7.38741039,1249.2,1249.1,1.19761059]
[1672911273191,5.59685976,1249.2,1249.1,4.19761059]
[1672911274867,5.59685976,1249.2,1249.1,3.0]
[1672911275606,5.59685976,1249.2,1249.1,4.19761059]
[1672911275929,5.59685976,1249.2,1249.1,3.0]
[1672911276236,5.59685976,1249.2,1249.1,4.19761059]
[1672911277395,5.59685976,1249.2,1249.1,9.19761059]
[1672911280868,7.38723399,1249.2,1249.1,9.19761059]
[1672911281701,5.59685976,1249.2,1249.1,9.19761059]
[1672911281917,5.59685976,1249.2,1249.1,6.19761059]
[1672911282546,5.59685976,1249.2,1249.1,5.0]
[1672911282966,5.59685976,1249.2,1249.1,6.19761059]
[1672911283177,5.59685976,1249.2,1249.1,5.0]
[1672911283597,5.59685976,1249.2,1249.1,6.19761059]
[1672911283808,5.59685976,1249.2,1249.1,5.0]
[1672911288749,8.58346411,1249.2,1249.1,5.0]
[1672911289061,8.5817952,1249.2,1249.1,5.0]
[1672911289269,6.19440435,1249.2,1249.1,5.0]
[1672911289480,8.58178771,1249.2,1249.1,5.0]
[1672911290002,6.19440435,1249.2,1249.1,5.0]
[1672911290424,8.58173912,1249.2,1249.1,5.0]
[1672911290637,6.19440435,1249.2,1249.1,5.0]
[1672911292315,2.98660435,1249.2,1249.1,5.0]
[1672911292632,6.19440435,1249.2,1249.1,5.0]
[1672911293788,2.98660435,1249.2,1249.1,5.0]
[1672911293993,6.19440435,1249.2,1249.1,5.0]
[1672911297359,2.98660435,1249.2,1249.1,5.0]
[1672911297572,6.19440435,1249.2,1249.1,5.0]
[1672911298415,2.98660435,1249.2,1249.1,5.0]
[1672911298613,6.19440435,1249.2,1249.1,5.0]
[1672911298934,6.19440435,1249.2,1249.1,6.19761059]
[1672911299779,2.98660435,1249.2,1249.1,6.19761059]
[1672911300200,6.19440435,1249.2,1249.1,6.19761059]
[1672911301558,3.2078,1249.2,1249.1,6.19761059]
[1672911302188,9.19591485,1249.2,1249.1,6.19761059]
[1672911302507,9.19605069,1249.2,1249.1,6.19761059]
[1672911302721,6.2078,1249.2,1249.1,6.19761059]
[1672911303771,6.2078,1249.2,1249.1,1.19761059]
[1672911304194,9.19756109,1249.2,1249.1,2.99404273]
[1672911304507,3.2078,1249.2,1249.1,2.99404273]
[1672911304817,6.19754753,1249.2,1249.1,1.79643214]
[1672911305026,6.19754753,1249.2,1249.1,4.19399792]
[1672911306496,8.58928865,1249.2,1249.1,4.19399792]
[1672911306714,6.19754753,1249.2,1249.1,2.39756578]
[1672911307557,8.58941539,1249.2,1249.1,4.19742535]
[1672911307975,5.38161539,1249.2,1249.1,4.19742535]
[1672911309024,2.98974753,1249.2,1249.1,4.19751684]
[1672911310182,2.98974753,1249.2,1249.1,1.79995106]
[1672911311122,6.19754753,1249.2,1249.1,1.79995106]
[1672911313327,6.19754753,1249.2,1249.1,4.19751684]
[1672911313858,2.98974753,1249.2,1249.1,4.19751684]
[1672911314068,5.38181833,1249.2,1249.1,2.39756578]
[1672911315543,2.3920708,1249.2,1249.1,3.81637088]
[1672911315854,2.3920708,1249.2,1249.1,9.81534149]
[1672911316264,2.3920708,1249.2,1249.1,6.81838427]
[1672911316805,2.3920708,1249.2,1249.1,9.81534149]
[1672911317013,2.3920708,1249.2,1249.1,6.81838427]
[1672911319427,4.18528812,1249.2,1249.1,6.81838427]
[1672911322268,2.3920708,1249.2,1249.1,5.39957917]
[1672911322479,2.3920708,1249.2,1249.1,14.81938556]
[1672911322796,2.3920708,1249.2,1249.1,13.40057917]
[1672911323526,4.18472514,1249.2,1249.1,13.40057917]
[1672911323738,2.3920708,1249.2,1249.1,13.40057917]
[1672911324055,2.3920708,1249.2,1249.1,15.19932165]
[1672911324258,2.3920708,1249.2,1249.1,12.79974248]
[1672911325631,2.3920708,1249.2,1249.1,15.19932165]
[1672911325947,2.3920708,1249.2,1249.1,12.79974248]
[1672911326258,2.3920708,1249.2,1249.1,15.19932165]
[1672911327098,2.3920708,1249.2,1249.1,13.40057917]
[1672911327413,2.3920708,1249.2,1249.1,15.19925114]
[1672911327623,4.18427422,1249.2,1249.1,13.40057917]
[1672911327830,2.3920708,1249.2,1249.1,15.19925828]
[1672911328041,2.3920708,1249.2,1249.1,13.40057917]
[1672911328584,2.3920708,1249.2,1249.1,15.19926004]
[1672911337506,2.3920708,1249.2,1249.1,13.40057917]
[1672911338873,2.3920708,1249.2,1249.1,14.81940899]
[1672911339084,2.3920708,1249.2,1249.1,13.40057917]
[1672911342344,5.38181833,1249.2,1249.1,14.81942462]
[1672911343716,2.98974753,1249.2,1249.1,14.81942462]
[1672911347089,5.38223045,1249.2,1249.1,14.81942462]
[1672911349804,2.98974753,1249.2,1249.1,14.81942462]
[1672911363062,2.98974753,1249.2,1249.1,17.81638184]
[1672911363273,2.98974753,1249.2,1249.1,14.81942462]
[1672911364118,2.98974753,1249.2,1249.1,17.81638184]
[1672911364540,2.98974753,1249.2,1249.1,14.81942462]
[1672911375368,6.19754753,1249.2,1249.1,14.81942462]
[1672911375898,6.19754753,1249.2,1249.1,14.81946341]
[1672911376106,6.19754753,1249.2,1249.1,13.40057917]
[1672911376630,6.19754753,1249.2,1249.1,2.39957917]
[1672911376841,3.2078,1249.2,1249.1,4.20086795]
[1672911377051,6.2078,1249.2,1249.1,4.80128878]
[1672911377577,6.2078,1249.2,1249.1,1.80128878]
[1672911378001,6.2078,1249.2,1249.1,3.00178835]
[1672911378728,0.00377545,1249.1,1249.0,3.00178835]
[1672911378934,3.58770067,1249.1,1249.0,1.20049957]
[1672911379357,6.58770067,1249.1,1249.0,1.20049957]
[1672911379889,6.58770067,1249.1,1248.9,3.00178835]
[1672911380103,9.19623852,1249.0,1248.9,3.00178835]
[1672911380625,9.19623852,1249.0,1248.9,1.80128878]
[1672911381358,9.19623852,1249.0,1248.9,3.00089874]
[1672911382196,11.58589033,1249.0,1248.9,3.00089874]
[1672911383776,11.58589033,1249.0,1248.9,5.99340596]
[1672911383990,8.59745181,1249.0,1248.9,5.99340596]
[1672911384503,8.59745181,1249.0,1248.9,2.99340596]
[1672911385031,8.59745181,1249.0,1248.9,5.99340596]
[1672911385237,8.59745181,1249.0,1248.9,2.99340596]
[1672911387661,5.38965181,1249.0,1248.9,2.99340596]
[1672911387865,5.59745181,1249.0,1248.9,5.99340596]
[1672911388074,5.59745181,1249.0,1248.9,2.99340596]
[1672911389661,2.38965181,1249.0,1248.9,2.99340596]
[1672911390080,5.59745181,1249.0,1248.9,2.99340596]
[1672911394911,2.38965181,1249.0,1248.9,2.99340596]
[1672911395124,5.59745181,1249.0,1248.9,5.99340596]
[1672911395340,5.59745181,1249.0,1248.9,2.99340596]
[1672911395542,5.59745181,1249.0,1248.9,1.19960996]